[Event "79th LOTTO Polish-ch 2022"]
[Site "Kruszwica"]
[Date "2022.05.14"]
[Round "4.1"]
[White "Moranda, Wojciech"]
[Black "Wojtaszek, Radoslaw"]
[Result "1/2-1/2"]
[ECO "C84"]
[WhiteElo "2630"]
[BlackElo "2696"]
[Annotator "TA"]
[PlyCount "177"]
[EventDate "2022.05.10"]
[EventType "k.o."]
[EventCountry "POL"]
[SourceTitle "playchess.com"]
[Source "ChessBase"]
[SourceQuality "1"]
[TimeControl "40/5400+30:1800+30"]

{[%evp 19,177,0,5,6,0,0,0,0,3,0,0,-6,0,-22,-7,-22,-22,-22,-14,-14,-14,-22,-13,-18,-4,-18,-8,-12,-10,-7,-5,-24,0,0,0,0,11,9,15,0,33,13,31,22,55,59,114,49,70,20,55,76,71,45,44,50,47,32,31,28,65,27,30,30,33,30,77,68,117,75,64,78,61,0,100,14,50,54,135,124,252,250,254,254,251,250,227,177,211,165,162,171,181,190,154,154,572,505,454,420,380,446,431,431,407,380,757,24,24,0,122,45,401,47,86,0,0,0,66,0,3,6,72,75,67,76,104,0,0,0,0,0,0,0,0,0,9,0,39,0,0,0,0,0,0,0,0,0,0,0,0,0,0,0,0,0,0,0,0,0]} 1. e4 {[%emt 0:00:04]} e5 {[%emt 0:00:04]} 2. Nf3 {[%emt 0:00:10]} Nc6 {[%emt 0:00:03]} 3. Bb5 {[%emt 0:00:15]} a6 {[%emt 0:00:04]} 4. Ba4 {[%emt 0:00:09]} Nf6 {[%emt 0:00:06]} 5. O-O {[%emt 0:00:11]} Be7 {[%emt 0:00:06]} 6. d3 {[%emt 0:00:12]} b5 {[%emt 0:00:05]} 7. Bb3 {[%emt 0:00:07]} d6 {[%emt 0:00:06]} 8. a3 {[%emt 0:00:08]} O-O {[%emt 0:00:08]} 9. Nc3 {[%emt 0:00:15]} Rb8 {[%emt 0:00:06]} 10. h3 {[%emt 0:12:27]} Na5 {[%emt 0:01:52]} 11. Ba2 {[%emt 0:01:19]} c5 {[%emt 0:00:09]} 12. Nd5 {[%emt 0:09:46]} Nxd5 {[%emt 0:00:36]} 13. Bxd5 {[%emt 0:00:15]} Bb7 {[%emt 0:00:07]} 14. Bxb7 {[%emt 0:17:17]} Rxb7 {[%emt 0:00:53]} 15. c3 {[%emt 0:08:36]} Nc6 {[%emt 0:12:39]} 16. a4 {[%emt 0:07:11]} b4 {[%emt 0:07:49]} 17. Qb3 {[%emt 0:01:29]} Qd7 {[%emt 0:00:12]} 18. Qd5 {[%emt 0:01:51]} Bf6 {[%emt 0:07:10]} 19. Be3 {[%emt 0:03:02]} Rc8 {[%emt 0:01:48]} 20. Nd2 {[%emt 0:08:26]} Ne7 {[%emt 0:03:08]} 21. Qc4 {[%emt 0:01:12]} Qc6 {[%emt 0:00:10]} 22. Rfc1 {[%emt 0:03:25]} d5 {[%emt 0:09:32]} 23. exd5 {[%emt 0:00:44]} Nxd5 {[%emt 0:00:06]} 24. Ne4 {[%emt 0:01:36]} Be7 {[%emt 0:02:53]} 25. Bd2 {[%emt 0:02:19]} bxc3 {[%emt 0:17:02]} 26. bxc3 {[%emt 0:03:13]} h6 {[%emt 0:05:01]} 27. Rcb1 {[%emt 0:01:57]} Rcb8 {[%emt 0:00:52]} 28. Rxb7 {[%emt 0:00:47]} Rxb7 {[%emt 0:00:39]} 29. Re1 {[%emt 0:01:55]} Rc7 {[%emt 0:07:51]} 30. Ng3 {[%emt 0:03:06]} Qe6 {[%emt 0:02:33]} 31. Rb1 {[%emt 0:01:09]} Rc8 {[%emt 0:04:53]} (31... Rd7 {looks sharper.} 32. Rb8+ Kh7 33. Qe4+ Qg6) 32. Rb7 {[%emt 0:01:25]} Ra8 {[%emt 0:02:25]} ({Black should play} 32... Rd8 $14) 33. a5 {[%emt 0:02:40]} (33. Qg4 $1 $16 {[%cal Rg4e6] And now Qxe6 would win.} Qxg4 34. hxg4) 33... Bf8 {[%emt 0:04:52]} 34. Qg4 {[%emt 0:02:49]} (34. Nf1 $14) 34... Qxg4 {[%emt 0:01:15]} 35. hxg4 {[%emt 0:00:06]} Nf6 {[%emt 0:00:09]} 36. g5 {[%emt 0:01:35]} hxg5 {[%emt 0:00:05]} 37. Bxg5 {[%emt 0:00:03]} Nd5 {[%emt 0:01:36]} 38. Bd2 {[%emt 0:01:44]} Rd8 {[%emt 0:05:18]} 39. Ra7 {[%emt 0:00:50]} Nf4 {[%emt 0:00:19]} 40. Bxf4 {[%emt 0:00:00]} exf4 {[%emt 0:00:00]} 41. Ne4 {[%emt 0:04:36]} Rxd3 {[%emt 0:19:52]} 42. Rxa6 {[%emt 0:00:21]} Rd1+ {[%emt 0:00:52]} 43. Kh2 {[%emt 0:00:06]} f6 {[%emt 0:01:28]} (43... Re1 $14 44. f3 g6) 44. Rc6 {[%emt 0:03:19]} Ra1 {[%emt 0:05:19]} 45. a6 {[%emt 0:00:10]} c4 {[%emt 0:02:46]} 46. f3 {[%emt 0:09:25]} (46. Rxc4 $6 Rxa6 47. g3 fxg3+ 48. Kxg3 Kf7 $11) (46. Nd2 $14) 46... Be7 {[%emt 0:01:15]} (46... Kf7 $1 $11) 47. g4 {[%emt 0:06:37]} (47. Rc7 $16 Kf7 48. Nc5) 47... fxg3+ {[%emt 0:00:22]} 48. Kxg3 {[%emt 0:02:51]} f5 {[%emt 0:00:02]} (48... Kf7 $14) 49. Nd2 $16 {[%emt 0:00:53]} Bf6 {[%emt 0:01:00]} (49... g5 $16 {keeps fighting.} 50. Nxc4 Kf8) 50. Nxc4 {[%emt 0:00:30]} Bxc3 {[%emt 0:00:41]} 51. Kf4 {[%emt 0:00:18]} Bd4 {[%emt 0:00:03]} 52. Kxf5 {[%emt 0:00:26]} Kh7 {[%emt 0:00:38]} 53. Nd6 {[%emt 0:01:17]} Bg1 {[%emt 0:00:20]} 54. Ne4 {[%emt 0:02:03]} Ra5+ {[%emt 0:00:05]} 55. Kg4 {[%emt 0:00:18]} Kg8 {[%emt 0:01:53]} 56. Ng5 {[%emt 0:00:30]} Kf8 {[%emt 0:00:14]} 57. Re6 {[%emt 0:00:07]} Bd4 $2 {[%emt 0:01:04]} (57... Bh2 $16 58. f4 Ra4) 58. Kh5 $18 {[%emt 0:01:40]} Bf6 {[%emt 0:00:04]} 59. f4 {[%emt 0:00:02]} Be7 {[%emt 0:00:03]} 60. Kg6 $1 {[%emt 0:00:27]} Ke8 {[%emt 0:00:14]} 61. f5 {[%emt 0:02:29]} Kd7 {[%emt 0:00:55]} 62. Ne4 {[%emt 0:00:29]} Ba3 $2 {[%emt 0:00:57]} (62... Bb4 63. Rb6 (63. Kxg7 Rxf5 64. Rb6 Ba3 $11) 63... Bf8) 63. Ng3 $2 {[%emt 0:00:35]} (63. Kxg7 Rxf5 64. Rh6 Bf8+ 65. Kg6 Bxh6 $11) (63. Nd2 $1 $18 {[%cal Rd2c4] Threatens to win with Nc4.} Rc5 64. Nb3 (64. Kxg7 Rxf5 65. Rg6 Bb2+ 66. Kh7 Rh5+ 67. Rh6 Rxh6+ 68. Kxh6 Bd4 $11)) 63... Bd6 $11 {[%emt 0:00:35]} 64. Ne4 {[%emt 0:00:36]} (64. Nh5 $5 {[%cal Rh5g7]} Rxa6 65. Nxg7 $16) 64... Bf4 {[%emt 0:00:04] [#]} (64... Ba3 $1 $11 {remains equal.}) 65. Ng5 {[%emt 0:01:18]} (65. Kxg7 $6 Rxf5 66. Rf6 (66. Rb6 Kc7 $11) 66... Rxf6 67. Kxf6 Kc6 $11) (65. Nf2 $1 $16 {[%cal Rf2d3]}) 65... Bd6 $2 {[%emt 0:00:32][%mdl 8192] [#]} ({Black should try} 65... Ra3 $14) 66. Nf7 $2 {[%emt 0:00:15]} ({White has to play} 66. Nf3 $1 $18) 66... Bc7 {[%emt 0:00:12]} 67. Kg5 {[%emt 0:01:05]} ({Much worse is} 67. Kxg7 $6 Rxf5 68. Rg6 Ra5 $11) ({Better is} 67. Re3 $16) 67... Ra3 $11 {[%emt 0:00:37]} 68. Kg6 {[%emt 0:00:29]} (68. Kh5 $11) 68... Ra5 $1 $14 {[%emt 0:00:03]} 69. Kg5 {[%emt 0:00:27]} ({Much weaker is} 69. Kxg7 Rxf5 70. Rg6 Ra5 $11) (69. Re3 $14) 69... Ra3 $11 {[%emt 0:00:19]} 70. Kh5 {[%emt 0:00:04]} Ra5 {[%emt 0:03:41]} (70... Ra1 $1 $11) 71. Kg6 $16 {[%emt 0:00:55]} Bb8 {[%emt 0:00:06]} 72. Re4 {[%emt 0:02:40]} Bc7 {[%emt 0:00:58]} 73. Ng5 {[%emt 0:00:41]} ({But not} 73. Kxg7 Rxf5 74. Ra4 Ke6 $14) (73. Re3 $16) 73... Rxa6+ $11 {[%emt 0:00:11]} 74. Kxg7 {[%emt 0:00:15]} Bd8 {[%emt 0:00:44]} 75. Rd4+ {[%emt 0:00:23]} Ke8 {[%emt 0:00:25]} 76. Ne6 {[%emt 0:00:16]} Ra7+ {[%emt 0:00:25]} 77. Kg6 {[%emt 0:00:10]} Be7 {[%emt 0:00:17]} 78. Ng7+ {[%emt 0:00:59]} Kf8 {[%emt 0:00:03]} 79. Re4 {[%emt 0:00:26]} (79. Rc4 $5 {[%cal Rc4c8]} Ra6+ 80. Ne6+ Ke8 81. Rc7 $16) 79... Ra1 {[%emt 0:01:16]} 80. Ne6+ {[%emt 0:00:31]} Ke8 {[%emt 0:00:04]} 81. Nc7+ {[%emt 0:02:16]} Kf8 $1 {[%emt 0:00:07]} 82. Rg4 {[%emt 0:00:14]} Rd1 {[%emt 0:02:17]} 83. Rg2 {[%emt 0:00:29]} Rc1 {[%emt 0:01:13]} 84. Nd5 {[%emt 0:00:44]} Rc6+ {[%emt 0:00:15]} 85. Kh7 {[%emt 0:00:11]} Bf6 {[%emt 0:00:50]} 86. Ra2 {[%emt 0:01:01]} Bg5 {[%emt 0:00:22]} 87. Ra8+ {[%emt 0:00:37]} Kf7 {[%emt 0:00:05]} 88. Ra7+ {[%emt 0:00:20]} Kf8 {[%emt 0:00:01]} 89. Ra8+ {[%emt 0:00:32]} 1/2-1/2

[Event "79th LOTTO Polish-ch 2022"]
[Site "Kruszwica"]
[Date "2022.05.14"]
[Round "4.1"]
[White "Bartel, Mateusz"]
[Black "Szpar, Milosz"]
[Result "0-1"]
[ECO "D27"]
[WhiteElo "2619"]
[BlackElo "2434"]
[Annotator "TA"]
[PlyCount "72"]
[EventDate "2022.05.10"]
[EventType "k.o."]
[EventCountry "POL"]
[SourceTitle "playchess.com"]
[Source "ChessBase"]
[SourceQuality "1"]
[TimeControl "40/5400+30:1800+30"]

{[%evp 11,72,22,27,12,23,31,18,-11,2,12,20,14,21,12,25,14,13,23,28,18,16,5,16,20,22,13,20,25,19,22,19,20,16,11,25,0,0,0,0,-42,-16,-27,-60,-51,-52,-178,-168,-188,-188,-177,-182,-216,-42,-563,-580,-759,-741,-739,-752,-976,-833,-978,-587]} 1. d4 {[%emt 0:00:03]} d5 {[%emt 0:00:10]} 2. Nf3 {[%emt 0:00:06]} Nf6 {[%emt 0:00:38]} 3. c4 {[%emt 0:00:16]} dxc4 {[%emt 0:02:54]} 4. e3 {[%emt 0:00:10]} e6 {[%emt 0:01:39]} 5. Bxc4 {[%emt 0:00:15]} c5 {[%emt 0:01:15]} 6. O-O {[%emt 0:00:13]} a6 {[%emt 0:00:09]} 7. Be2 {[%emt 0:00:04] D27: Queen's Gambit Accepted: Classical main line: 7 e4!? and 7 a4.} cxd4 {[%emt 0:05:01]} 8. Nxd4 {[%emt 0:01:18]} Be7 {[%emt 0:04:53]} 9. Nd2 {[%emt 0:14:35] The position is equal.} O-O {[%emt 0:00:25]} (9... e5 $5 {[%cal Re5d4]} 10. N4f3 Nc6 $11) 10. b3 {[%emt 0:03:57]} Bd7 {[%emt 0:12:26]} 11. Bb2 {[%emt 0:00:06]} Nc6 {[%emt 0:00:24]} 12. N4f3 {[%emt 0:00:04]} Rc8 {[%emt 0:06:31]} 13. Qb1 {[%emt 0:02:31] [#]} Nb4 $146 {[%emt 0:07:14]} ({Predecessor:} 13... Nd5 14. a3 Bf6 15. Ne4 Bxb2 16. Qxb2 h6 17. Rac1 Qe7 18. h3 Rfd8 19. Rfd1 Be8 {½-½ (26) Panitevsky,I (2535)-Emelyanov,M (2533) ICCF email 2019}) 14. a3 {[%emt 0:10:30]} Nbd5 {[%emt 0:01:27]} 15. Rd1 {[%emt 0:01:22]} Qc7 {[%emt 0:05:45]} (15... Nc3 16. Bxc3 Rxc3 17. Bc4 $16) 16. Bd3 {[%emt 0:19:46]} Bb5 {[%emt 0:09:43]} 17. Nc4 {[%emt 0:00:41]} Bxc4 {[%emt 0:12:50]} 18. bxc4 {[%emt 0:04:51]} Nb6 {[%emt 0:00:14]} 19. Be5 {[%emt 0:15:42] This bishop pair is nice.} Qc6 {[%emt 0:00:20]} 20. Nd4 {[%emt 0:01:04]} Qc5 {[%emt 0:00:13]} 21. Bg3 {[%emt 0:00:05]} Rfd8 {[%emt 0:05:41]} 22. h3 {[%emt 0:00:07]} Rd7 {[%emt 0:02:21]} 23. Rc1 {[%emt 0:05:42]} Na4 {[%emt 0:02:35]} 24. Be2 {[%emt 0:00:36]} Bd6 {[%emt 0:02:33][%cal Be7d6,Bd6g3,Bg3f2][%mdl 32]} 25. Bd1 {[%emt 0:02:55]} Bxg3 {[%emt 0:02:33]} 26. Bxa4 {[%emt 0:00:12]} Rxd4 {[%emt 0:00:13]} 27. exd4 {[%emt 0:02:54]} Qxd4 {[%emt 0:06:54]} 28. Qxb7 {[%emt 0:02:47]} (28. Ra2 $15) 28... Bxf2+ $19 29. Kf1 ({Much worse is} 29. Kh1 Rf8 30. Qf3 (30. Qxa6 $2 Ne4 $19) 30... Ne4) 29... Rf8 {[%emt 0:01:03][%mdl 1024] Black has strong compensation. Chess con chili.} 30. Rd1 {[%emt 0:00:35] [#]} Qh4 ({Weaker is} 30... Qxc4+ 31. Kxf2 Qxa4 32. Qf3 $11) 31. Qf3 {[%emt 0:01:32] [#]} Ne4 $40 {[%emt 0:05:32][%mdl 128] Black is up to no good.} ({Inferior is} 31... Qxc4+ 32. Kxf2 Qxa4 33. Kg1 $11) ({Black should play} 31... Ba7 $1 $19 32. Bc2 Qxc4+ 33. Bd3 Qc5) 32. g4 $2 {[%emt 0:00:36][%mdl 8192]} (32. Qg4 $15) 32... f5 {[%emt 0:01:45][%cal Of5g4] Threatens to win with ...fxg4! Black is clearly winning.} 33. Bd7 {[%emt 0:00:18] [#]} Ng5 {[%cal Be4g5,Bg5e6,Be6d4][%mdl 32]} 34. Bxe6+ {[%emt 0:00:03]} Nxe6 {[%emt 0:00:38]} 35. gxf5 Ba7 {[%emt 0:01:09]} 36. Rd2 {[%emt 0:00:48]} Nd4 {[%emt 0:00:20] Weighted Error Value: White=0.52/Black=0.17 (very precise)} 0-1

[Event "79th LOTTO Polish-ch 2022"]
[Site "Kruszwica"]
[Date "2022.05.14"]
[Round "4.1"]
[White "Gajewski, Grzegorz"]
[Black "Kosakowski, Jakub"]
[Result "1/2-1/2"]
[ECO "E92"]
[WhiteElo "2589"]
[BlackElo "2435"]
[Annotator "TA"]
[PlyCount "85"]
[EventDate "2022.05.10"]
[EventType "k.o."]
[EventCountry "POL"]
[SourceTitle "playchess.com"]
[Source "ChessBase"]
[SourceQuality "1"]
[TimeControl "40/5400+30:1800+30"]

{[%evp 26,85,29,27,42,37,57,18,13,22,19,11,8,10,11,10,11,11,35,41,68,62,50,0,11,0,0,2,2,5,3,0,0,0,0,0,0,0,0,0,0,-9,-9,-9,-9,-9,0,-8,-8,-8,-8,-8,-8,-8,0,0,0,-1,0,0,0,0]} 1. d4 {[%emt 0:00:02]} Nf6 {[%emt 0:00:13]} 2. c4 {[%emt 0:00:06]} g6 {[%emt 0:00:17]} 3. Nc3 {[%emt 0:00:06]} Bg7 {[%emt 0:00:23]} 4. e4 {[%emt 0:00:05]} d6 {[%emt 0:00:10]} 5. Nf3 {[%emt 0:00:06]} O-O {[%emt 0:00:18]} 6. Be2 {[%emt 0:00:06]} e5 {[%emt 0:01:29]} 7. dxe5 {[%emt 0:00:10]} dxe5 {[%emt 0:00:13]} 8. Qxd8 {[%emt 0:00:04]} Rxd8 {[%emt 0:00:11]} 9. Bg5 {[%emt 0:00:06]} Re8 {[%emt 0:11:56]} 10. Nd5 {[%emt 0:00:15]} Nxd5 {[%emt 0:00:37]} 11. cxd5 {[%emt 0:00:03]} c6 {[%emt 0:00:23]} 12. Bc4 {[%emt 0:00:24]} b5 {[%emt 0:02:16]} 13. Bb3 {[%emt 0:06:25]} Bb7 {[%emt 0:00:22]} 14. Rc1 {[%emt 0:14:50]} h6 {[%emt 0:09:51] E92: King's Indian: Classical: 6 Be2 e5: 7 dxe5, 7 Be3 and Petrosian System without 7...Nbd7.} 15. Be3 {[%emt 0:00:16]} Rc8 {[%emt 0:00:46]} 16. O-O {[%emt 0:02:31]} Nd7 {[%emt 0:01:18]} 17. dxc6 {[%emt 0:00:33]} Bxc6 {[%emt 0:01:46] [#]} 18. Rxc6 $1 {[%emt 0:05:42]} Rxc6 {[%emt 0:00:09]} 19. Bd5 {[%emt 0:00:03]} Rac8 {[%emt 0:00:17] Strongly threatening ...R6c7.} 20. Bxc6 {[%emt 0:00:05]} Rxc6 {[%emt 0:00:09]} 21. Rd1 {[%emt 0:05:00] [#]} Rc7 $146 {[%emt 0:09:01]} ({Predecessor:} 21... Nb6 22. Rc1 Rxc1+ 23. Bxc1 a6 24. Kf1 f6 25. Ke2 Kf7 26. Kd3 Na4 27. Kc2 Nc5 {0-1 (58) Gonzalez,A (1740)-Benitez Galeano,A (2121) Asuncion 2018}) 22. Kf1 {[%emt 0:01:59]} Nf6 {[%emt 0:02:07]} 23. Nxe5 {[%emt 0:00:52]} Nxe4 {[%emt 0:00:19]} 24. Nd3 {[%emt 0:01:48]} (24. Rd8+ $14 Kh7 25. Nd3) 24... Rc2 {[%emt 0:17:30] The position is equal.} 25. Rc1 {[%emt 0:00:49]} Rxc1+ {[%emt 0:07:59]} 26. Bxc1 $11 {[%emt 0:00:07][%mdl 4096] Endgame KBN-KBN} Kf8 {[%emt 0:00:34]} 27. Ke2 {[%emt 0:02:32]} Ke7 {[%emt 0:01:18]} 28. Be3 {[%emt 0:02:42]} a5 {[%emt 0:00:26]} 29. Bb6 {[%emt 0:03:25]} a4 {[%emt 0:00:25]} 30. f3 {[%emt 0:01:48]} Ng5 {[%emt 0:01:41]} 31. b3 {[%emt 0:01:50]} axb3 {[%emt 0:00:10]} 32. axb3 {[%emt 0:00:03]} Ne6 {[%emt 0:00:09]} 33. Kd2 {[%emt 0:09:51]} Kd6 {[%emt 0:02:17]} 34. Be3 {[%emt 0:00:23]} h5 {[%emt 0:04:26]} 35. Nf4 {[%emt 0:02:03]} Nd8 {[%emt 0:19:21]} 36. g4 {[%emt 0:07:16]} hxg4 {[%emt 0:00:06]} 37. fxg4 {[%emt 0:00:01]} Nc6 {[%emt 0:00:08]} 38. h4 {[%emt 0:03:30]} Ne5 {[%emt 0:00:39]} 39. h5 $1 {[%emt 0:01:04]} Nxg4 {[%emt 0:07:05]} 40. hxg6 {[%emt 0:00:00]} fxg6 {[%emt 0:00:00]} 41. Nxg6 {[%emt 0:00:54]} Ke6 {[%emt 0:01:37]} 42. Nf4+ {[%emt 0:00:34]} Kf5 {[%emt 0:00:19]} 43. Nd3 {[%emt 0:00:27] Weighted Error Value: White=0.05 (flawless) /Black=0.04 (flawless)} 1/2-1/2

[Event "79th LOTTO Polish-ch 2022"]
[Site "Kruszwica"]
[Date "2022.05.14"]
[Round "4.1"]
[White "Tomczak, Jacek"]
[Black "Piorun, Kacper"]
[Result "1/2-1/2"]
[ECO "C11"]
[WhiteElo "2584"]
[BlackElo "2635"]
[Annotator "TA"]
[PlyCount "64"]
[EventDate "2022.05.10"]
[EventType "k.o."]
[EventCountry "POL"]
[SourceTitle "playchess.com"]
[Source "ChessBase"]
[SourceQuality "1"]
[TimeControl "40/5400+30:1800+30"]

{[%evp 16,64,19,8,17,8,8,16,9,6,18,6,25,21,19,28,12,14,13,20,20,16,80,66,86,17,17,15,14,0,0,0,34,19,11,0,0,0,0,0,0,0,0,0,0,0,0,0,0,-7,0]} 1. e4 {[%emt 0:00:04]} e6 {[%emt 0:00:05]} 2. d4 {[%emt 0:00:09]} d5 {[%emt 0:00:03]} 3. Nc3 {[%emt 0:00:12]} Nf6 {[%emt 0:00:29]} 4. e5 {[%emt 0:00:07]} Nfd7 {[%emt 0:00:05]} 5. f4 {[%emt 0:00:07]} c5 {[%emt 0:00:06]} 6. Nf3 {[%emt 0:00:09]} Nc6 {[%emt 0:00:06]} 7. Be3 {[%emt 0:00:13]} a6 {[%emt 0:00:28]} 8. Qd2 {[%emt 0:03:13]} b5 {[%emt 0:00:08]} 9. a3 {[%emt 0:00:25]} Qa5 {[%emt 0:00:56] C11: French: Classical System: 4 e5 and 4 Bg5 dxe4.} 10. dxc5 {[%emt 0:06:13]} Bxc5 {[%emt 0:00:09]} 11. Bxc5 {[%emt 0:05:33]} Nxc5 {[%emt 0:00:03][%cal Bd7c5,Bc5a4,Ba4b6][%mdl 32]} 12. Nd4 {[%emt 0:00:35]} Nxd4 {[%emt 0:00:09]} 13. Qxd4 {[%emt 0:00:24]} Na4 {[%emt 0:03:46]} 14. b4 {[%emt 0:08:49]} Qb6 {[%emt 0:01:19]} 15. Qxb6 {[%emt 0:00:05]} Nxb6 {[%emt 0:00:04]} 16. a4 {[%emt 0:00:07]} d4 {[%emt 0:00:04]} 17. Ne4 {[%emt 0:01:18]} bxa4 {[%emt 0:07:11]} 18. O-O-O {[%emt 0:09:02] [#]} Bd7 $146 {[%emt 0:11:44]} (18... Ke7 $11 {keeps the balance.}) ({Predecessor:} 18... Nd5 19. Rxd4 Ke7 20. g3 Rd8 21. Bd3 Rb8 22. c3 Bb7 23. Kd2 Bc6 24. Rc1 Nxb4 25. cxb4 Rxd4 26. Rxc6 Rbxb4 {½-½ (52) Teeriaho,T (2330)-Laine,J (2277) ICCF email 2016}) 19. Rxd4 {[%emt 0:01:26] White is much more active. The black rooks are badly placed.} Ke7 {[%emt 0:00:09]} 20. Nc5 {[%emt 0:14:42]} (20. Kb2 $16) 20... Bb5 $1 $11 {[%emt 0:02:20]} 21. c4 {[%emt 0:24:37]} Bc6 {[%emt 0:00:08]} 22. Kb2 {[%emt 0:00:46]} Rhc8 $1 {[%emt 0:11:45]} 23. Nd3 {[%emt 0:01:54]} Be8 {[%emt 0:20:42]} 24. Nf2 {[%emt 0:01:20]} ({Much weaker is} 24. Nc5 a5 25. bxa5 Rxa5 $17) 24... f6 {[%emt 0:04:09] The position is equal.} 25. exf6+ {[%emt 0:02:30]} gxf6 {[%emt 0:00:06]} 26. Be2 {[%emt 0:00:35]} e5 {[%emt 0:05:56]} 27. fxe5 {[%emt 0:00:25]} fxe5 {[%emt 0:00:02]} 28. Re4 {[%emt 0:02:06] [#] Black must now prevent Ng4.} Bg6 $1 {[%emt 0:01:17]} 29. Rxe5+ {[%emt 0:00:45]} Kd6 {[%emt 0:00:05]} 30. Rc5 {[%emt 0:00:28]} Rxc5 {[%emt 0:00:14]} 31. Rd1+ {[%emt 0:00:30]} Rd5 {[%emt 0:01:31]} 32. cxd5 {[%emt 0:00:22]} a5 {[%emt 0:00:28] Weighted Error Value: White=0.08 (flawless) /Black=0.07 (flawless)} 1/2-1/2

[Event "79th LOTTO Polish-ch 2022"]
[Site "Kruszwica"]
[Date "2022.05.14"]
[Round "4.1"]
[White "Teclaf, Pawel"]
[Black "Licznerski, Lukasz"]
[Result "1/2-1/2"]
[ECO "D10"]
[WhiteElo "2537"]
[BlackElo "2439"]
[Annotator "TA"]
[PlyCount "119"]
[EventDate "2022.05.10"]
[EventType "k.o."]
[EventCountry "POL"]
[SourceTitle "playchess.com"]
[Source "ChessBase"]
[SourceQuality "1"]
[TimeControl "40/5400+30:1800+30"]

{[%evp 9,119,0,0,0,21,21,18,5,8,5,8,10,37,40,39,38,37,37,50,54,50,52,66,48,53,35,40,31,29,29,29,29,34,35,35,33,33,30,53,32,32,0,61,54,54,34,35,34,36,25,25,17,28,13,30,30,30,8,30,10,30,30,30,30,30,0,0,0,18,0,0,0,4,0,0,0,0,0,0,0,0,-8,0,0,0,0,0,0,0,0,0,0,0,0,0,0,0,0,0,0,0,0,0,0,0,0,0,0,0,0,8,8]} 1. d4 {[%emt 0:00:04]} d5 {[%emt 0:01:07]} 2. c4 {[%emt 0:00:10]} c6 {[%emt 0:00:03]} 3. cxd5 {[%emt 0:00:04]} cxd5 {[%emt 0:00:08]} 4. Bg5 {[%emt 0:00:04]} Nc6 {[%emt 0:08:34]} 5. Nc3 {[%emt 0:01:35]} f6 {[%emt 0:02:37]} 6. Bd2 {[%emt 0:00:12] D10: Slav Defence: 3 cxd5 (without early Nf3) and 3 Nc3.} e6 {[%emt 0:22:32]} 7. Nf3 {[%emt 0:08:13]} f5 {[%emt 0:00:55] [#] Prevents e4.} 8. Rc1 $146 {[%emt 0:12:48]} ({Predecessor:} 8. Ne5 Nge7 9. Qa4 Bd7 10. Nxd7 Qxd7 11. e3 Nc8 12. g4 Nb6 13. Qd1 g6 14. gxf5 exf5 {1-0 (40) Tristan,L (2496)-Toniutti,E (2301) Buenos Aires 2018}) 8... Bd6 {[%emt 0:03:04]} 9. Bg5 {[%emt 0:02:12]} Nf6 {[%emt 0:05:13]} 10. e3 {[%emt 0:01:40]} h6 {[%emt 0:01:12]} 11. Bf4 {[%emt 0:08:20]} Bxf4 {[%emt 0:00:08]} 12. exf4 {[%emt 0:00:06]} O-O {[%emt 0:08:04]} 13. Bb5 {[%emt 0:01:43]} Qd6 {[%emt 0:05:33]} 14. Bxc6 {[%emt 0:03:29]} Qxc6 {[%emt 0:04:43]} 15. O-O {[%emt 0:01:10][%cal Oc3e4]} Qd6 {[%emt 0:01:09]} 16. Ne5 {[%emt 0:08:52]} Bd7 {[%emt 0:00:08] Prevents Nb5.} 17. Qb3 {[%emt 0:10:40]} Rfc8 {[%emt 0:00:11]} 18. Nb1 {[%emt 0:02:23] Pair of Knights!} ({Don't blunder} 18. Qxb7 $2 Rcb8 19. Nb5 Qb4 $19) 18... Rc7 {[%emt 0:03:15]} 19. Rxc7 {[%emt 0:04:01]} Qxc7 {[%emt 0:00:01]} 20. Nc3 {[%emt 0:02:08]} b6 {[%emt 0:03:43]} 21. Qa3 {[%emt 0:02:29]} Be8 {[%emt 0:06:21]} 22. Rc1 {[%emt 0:00:27]} Rc8 {[%emt 0:00:27]} 23. f3 {[%emt 0:00:49]} Qb7 {[%emt 0:06:45]} 24. Re1 {[%emt 0:03:09] Threatens to win with Qd6.} Qc7 {[%emt 0:00:53] Prevents Qd6.} 25. Rc1 {[%emt 0:00:08]} Qb7 {[%emt 0:00:13]} 26. Qd6 {[%emt 0:00:20] White is more active.} Bf7 {[%emt 0:00:22]} 27. a4 {[%emt 0:01:06]} (27. Ne2 $5 {[%cal Rc1c8]}) 27... Ne8 {[%emt 0:03:13]} 28. Qa3 {[%emt 0:00:24]} Qb8 {[%emt 0:00:46]} 29. Qe7 {[%emt 0:05:34]} Qc7 {[%emt 0:01:38]} 30. Qxc7 {[%emt 0:09:11]} Rxc7 {[%emt 0:00:07]} 31. Kf2 {[%emt 0:00:27]} a5 {[%emt 0:04:09]} 32. Ke2 {[%emt 0:02:53]} Nd6 {[%emt 0:00:20]} 33. b3 {[%emt 0:02:36]} Be8 {[%emt 0:01:42]} (33... b5 $5) 34. Kd2 {[%emt 0:01:16][%cal Oc3d5]} Kf8 {[%emt 0:02:36]} 35. Re1 {[%emt 0:01:28]} Ke7 {[%emt 0:02:16]} 36. h3 {[%emt 0:02:50]} Kf6 {[%emt 0:00:24]} 37. Nd3 {[%emt 0:00:34]} g5 {[%emt 0:00:44] The position is equal.} 38. Ne2 {[%emt 0:00:31]} Rc8 {[%emt 0:02:03]} 39. Nc3 {[%emt 0:01:44]} Rc7 {[%emt 0:00:07]} 40. Rh1 {[%emt 0:00:00]} Rg7 {[%emt 0:00:00]} 41. g4 {[%emt 0:13:39]} Rg8 {[%emt 0:06:21]} 42. Ne2 {[%emt 0:01:28]} b5 {[%emt 0:09:53]} 43. Nc5 {[%emt 0:02:48]} bxa4 {[%emt 0:00:23]} 44. bxa4 {[%emt 0:00:54]} Nc4+ {[%emt 0:00:18]} 45. Kc2 {[%emt 0:04:54]} Nb6 {[%emt 0:00:51]} 46. Kb3 {[%emt 0:02:39]} Bc6 {[%emt 0:01:14]} 47. h4 {[%emt 0:05:23] [#] Hoping for hxg5+.} fxg4 {[%emt 0:04:55] Strongly threatening ...gxh4.} 48. hxg5+ {[%emt 0:01:15]} hxg5 {[%emt 0:00:02]} 49. Rh6+ {[%emt 0:00:27]} Rg6 {[%emt 0:01:01]} 50. fxg5+ {[%emt 0:01:13]} (50. Rxg6+ {looks sharper.} Kxg6 51. fxg4 Bd7 52. fxg5 Kxg5 53. Nc3) 50... Kxg5 {[%emt 0:00:10]} 51. Rxg6+ {[%emt 0:00:05]} Kxg6 {[%emt 0:00:04]} 52. fxg4 $11 {[%emt 0:00:04][%mdl 4096] Endgame KBN-KNN} Kg5 {[%emt 0:01:22]} 53. Nxe6+ {[%emt 0:00:11]} Kxg4 {[%emt 0:00:02]} 54. Nc3 {[%emt 0:00:06]} Kf3 {[%emt 0:01:44]} 55. Nd8 {[%emt 0:00:10]} Bd7 {[%emt 0:00:31]} 56. Nb7 {[%emt 0:00:53]} Ke3 {[%emt 0:00:15]} 57. Nxa5 {[%emt 0:00:09]} Kxd4 {[%emt 0:00:18]} 58. Kb4 {[%emt 0:00:07]} Nxa4 {[%emt 0:00:12]} 59. Nb3+ {[%emt 0:00:05]} Ke5 {[%emt 0:00:15]} 60. Nxa4 {[%emt 0:00:12] Weighted Error Value: White=0.05 (flawless) /Black=0.04 (flawless)} 1/2-1/2